bitfinex-derivatives/quotes_SOLF0:USTF0_20241009
["timestamp","ask_amount","ask_price","bid_price","bid_amount"]
[1728437669823,0.12502,145.13,145.11,3.4471]
[1728437671120,0.12502,145.13,145.1,3.4474]
[1728437671726,3.57172,145.13,145.09,3.4475]
[1728437671926,3.57172,145.13,145.07,23.96]
[1728437672423,3.57172,145.13,145.09,3.4475]
[1728437672628,3.4471,145.12,145.07,23.96]
[1728437672832,0.12502,145.13,145.07,23.96]
[1728437673426,0.12502,145.13,145.1,3.4472]
[1728437675231,3.4473,145.11,145.07,10.8679]
[1728437675526,0.12502,145.13,145.05,27.4253365]
[1728437675718,3.4471,145.12,145.08,3.4476]
[1728437676224,3.57172,145.13,145.09,3.4475]
[1728437676622,0.12502,145.13,145.07,16.54]
[1728437676823,0.12502,145.13,145.1,3.4473]
[1728437677925,3.57172,145.13,145.1,3.4473]
[1728437678430,0.12502,145.13,145.07,16.54]
[1728437679427,3.57182,145.13,145.09,3.4476]
[1728437679630,3.57182,145.13,145.07,16.54]
[1728437679935,3.57182,145.13,145.09,3.4475]
[1728437680226,3.57182,145.13,145.07,16.54]
[1728437681029,0.12502,145.13,145.1,3.4472]
[1728437683140,0.12502,145.13,145.05,10.8853365]
[1728437683141,0.12502,145.13,145.09,16.54]
[1728437683442,0.12502,145.13,145.12,3.4469]
[1728437685023,0.12502,145.13,145.1,3.4472]
[1728437685434,0.12502,145.13,145.09,7.42]
[1728437685637,0.12502,145.13,145.11,3.4471]
[1728437685836,0.12502,145.13,145.09,7.42]
[1728437686242,0.12502,145.13,145.1,3.4474]
[1728437686632,0.12502,145.13,145.09,7.42]
[1728437686838,3.57192,145.13,145.09,3.4476]
[1728437687033,0.12502,145.13,145.09,3.4476]
[1728437687235,0.12502,145.13,145.04,16.54]
[1728437687440,16.66502,145.13,145.04,16.54]
[1728437687732,16.66502,145.13,145.04,23.84]
[1728437688439,3.4476,145.1,145.06,3.4483]
[1728437688946,3.4477,145.09,145.05,3.4485]
[1728437689235,16.66502,145.13,145.04,16.54]
[1728437689643,3.4474,145.1,145.06,3.4482]
[1728437689832,16.66502,145.13,145.04,16.54]
[1728437690340,3.4471,145.12,145.08,3.4477]
[1728437691231,0.12502,145.13,145.04,16.54]
[1728437691539,0.12502,145.13,145.06,16.54]
[1728437692543,0.12502,145.13,145.09,3.4475]
[1728437693248,3.57182,145.13,145.09,3.4475]
[1728437693441,0.12502,145.13,145.08,3.4478]
[1728437694545,3.4471,145.12,145.08,3.4478]
[1728437695345,3.4471,145.12,145.06,16.54]
[1728437695540,3.4471,145.12,145.08,3.4477]
[1728437696337,0.12502,145.13,145.08,3.4477]
[1728437697643,0.12502,145.13,145.07,3.4481]
[1728437697851,3.4472,145.11,145.07,3.4481]
[1728437698140,16.66502,145.13,145.04,16.54]
[1728437698348,3.4477,145.09,145.04,16.54]
[1728437698537,3.42118461,145.1,145.04,16.54]
[1728437698846,17.8972,145.12,145.05,3.4485]
[1728437699045,1.2993,145.11,145.05,3.4485]
[1728437699349,3.50943766,145.1,145.05,3.4485]
[1728437700249,1.2993,145.11,145.04,16.54]
[1728437700442,3.4488,145.05,145.01,4.91412]
[1728437700744,3.39407884,145.07,145.01,0.12502]
[1728437700944,3.4479,145.08,145.04,3.4486]
[1728437701246,7.3,145.09,145.02,20.06370542]
[1728437701548,3.4476,145.1,145.02,16.54]
[1728437701845,360.1681,145.14,145.06,16.54]
[1728437702146,25.1681,145.14,145.06,16.54]
[1728437702339,3.447,145.12,145.08,3.4479]
[1728437703645,3.447,145.12,145.09,3.4476]
[1728437704247,3.447,145.12,145.08,3.4478]
[1728437704748,17.8681,145.14,145.08,3.4478]
[1728437704936,3.4478,145.09,145.05,10.7484]
[1728437705140,17.8681,145.14,145.03,1.3282]
[1728437705141,3.46910326,145.1,145.03,1.3282]
[1728437705447,3.4481,145.07,145.03,3.4489]
[1728437705839,19.9270555,145.1,145.01,7.42502]
[1728437706045,1.3167,145.09,145.01,7.42502]
[1728437706437,1.3167,145.09,145.01,0.12502]
[1728437706640,16.54,145.08,145.01,0.12502]
[1728437707147,2.6805,145.09,145.01,0.12502]
[1728437708047,2.6805,145.09,145.01,7.42502]
[1728437708448,3.4481,145.07,145.03,3.449]
[1728437709451,23.84,145.12,145.02,16.54]
[1728437709850,3.4476,145.09,145.02,16.54]
[1728437710165,3.4476,145.09,145.05,3.4484]
[1728437710346,10.67477354,145.12,145.04,16.54]
[1728437710950,27.21477354,145.12,145.03,16.54]
[1728437711556,3.4483,145.07,145.03,19.989]
[1728437711754,16.54,145.1,145.01,23.96502]
[1728437712762,3.4485,145.06,145.02,3.4492]
[1728437713557,3.4486,145.05,145.02,3.4492]
[1728437713757,16.54,145.1,145.01,20.11452]
[1728437714055,3.4493,145.02,145.01,0.12502]
[1728437716082,1.403,145.04,145.01,0.12502]
[1728437716270,7.3,145.06,145.01,0.12502]
[1728437716574,3.449,145.04,145.01,0.12502]
[1728437716780,7.3,145.06,145.01,0.12502]
[1728437717783,3.4493,145.02,145.01,0.12502]
[1728437722173,3.4492,145.03,145.01,0.12502]
[1728437722375,7.3,145.06,145.01,0.12502]
[1728437723171,3.4487,145.05,145.01,0.12502]
[1728437723385,7.3,145.06,145.01,0.12502]
[1728437724376,3.449,145.04,145.01,0.12502]
[1728437726175,7.0,145.07,145.01,0.12502]
[1728437726484,3.4491,145.03,145.01,0.12502]
[1728437727379,20.6029,145.1,145.01,0.12502]
[1728437727580,3.4482,145.07,145.01,0.12502]
[1728437727783,20.6029,145.1,145.01,0.12502]
[1728437727979,3.4483,145.07,145.03,3.4489]
[1728437728484,7.0,145.09,145.01,0.12502]
[1728437728683,3.4488,145.05,145.01,3.57442]
[1728437729386,3.4489,145.04,145.01,3.57442]
[1728437730682,3.4491,145.03,145.01,0.12502]
[1728437730883,16.54,145.08,145.01,0.12502]
[1728437731589,3.4493,145.02,145.01,0.12502]
[1728437733382,3.4501,144.99,144.95,20.11582]
[1728437733588,3.4501,144.99,144.95,16.66502]
[1728437734385,3.4501,144.99,144.96,3.4507]
[1728437734683,1.3572,145.03,144.95,16.66502]
[1728437734981,3.4502,144.99,144.95,16.66502]
[1728437735186,1.3572,145.03,144.95,0.12502]
[1728437735387,1.407,145.06,145.0,16.54]
[1728437735786,3.4492,145.03,145.0,16.54]
[1728437736391,3.4494,145.02,145.0,16.54]
[1728437737397,3.449,145.04,145.0,19.9896]
[1728437737992,3.449,145.04,145.01,3.4495]
[1728437738288,3.4484,145.06,145.0,16.54]
[1728437738592,1.3975,145.08,145.04,16.54]
[1728437739090,1.3975,145.08,145.05,3.4484]
[1728437739289,1.3975,145.08,145.04,16.54]
[1728437739593,1.3975,145.08,145.05,3.4484]
[1728437739894,1.3975,145.08,145.04,16.54]
[1728437740793,1.3975,145.08,145.01,17.9486]
[1728437740994,3.57312,145.07,145.03,3.4489]
[1728437741602,0.12502,145.07,145.06,3.4484]
[1728437742088,0.12502,145.07,145.05,16.54]
[1728437742089,1.53042,145.13,145.1,3.4474]
[1728437742290,1.53042,145.13,145.08,16.54]
[1728437742893,4.97722,145.13,145.09,3.4476]
[1728437743088,1.53042,145.13,145.08,16.54]
[1728437743484,0.12502,145.13,145.1,3.4472]
[1728437743689,0.12502,145.13,145.08,16.54]
[1728437744491,0.12502,145.13,145.1,3.4474]
[1728437747097,3.4469,145.12,145.09,3.4476]
[1728437749197,0.12502,145.13,145.08,16.54]
[1728437749494,0.12502,145.13,145.08,23.28]
[1728437749901,0.12502,145.13,145.1,16.54]
[1728437750495,0.12502,145.13,145.12,3.4469]
[1728437750897,0.12502,145.13,145.1,16.54]
[1728437751101,0.12502,145.13,145.1,19.9872]
[1728437751399,0.12502,145.13,145.1,16.54]
[1728437751803,0.12502,145.13,145.1,19.9873]
[1728437752000,0.12502,145.13,145.1,3.4473]
[1728437752300,0.12502,145.13,145.09,1.3526]
[1728437752493,0.12502,145.13,145.11,3.447]
[1728437753403,0.12502,145.13,145.09,1.3526]
[1728437753600,0.12502,145.13,145.1,3.4472]
[1728437754397,0.12502,145.13,145.09,1.3526]
[1728437754608,0.12502,145.13,145.1,16.54]
[1728437755203,0.12502,145.13,145.09,1.3526]
[1728437756397,3.4469,145.12,145.09,3.4475]
[1728437756908,0.12502,145.13,145.08,16.54]
[1728437757105,0.12502,145.13,145.1,3.4474]
[1728437757304,0.12502,145.13,145.08,16.54]
[1728437757510,0.12502,145.13,145.1,3.4472]
[1728437759399,3.57172,145.13,145.1,3.4472]
[1728437760510,3.4473,145.11,145.08,16.54]
[1728437760905,3.4473,145.11,145.07,3.448]
[1728437761310,0.12502,145.13,145.04,23.28]
[1728437761507,0.12502,145.13,145.06,16.54]
[1728437761699,3.57172,145.13,145.09,3.4474]
[1728437762909,0.12502,145.13,145.08,16.54]
[1728437763120,0.12502,145.13,145.1,16.54]
[1728437763804,0.12502,145.13,145.12,3.4469]
[1728437764611,0.12502,145.13,145.12,19.9869]
[1728437766411,0.12502,145.13,145.1,16.54]
[1728437766910,0.12502,145.13,145.12,19.9869]
[1728437768307,0.12502,145.13,145.12,26.7269]
[1728437775907,0.12502,145.19,145.12,23.28]
[1728437776125,0.12502,145.19,145.17,3.4457]
[1728437777018,0.12502,145.19,145.15,16.54]
[1728437777209,3.57032,145.19,145.16,3.4458]
[1728437777406,0.12502,145.19,145.15,16.54]
[1728437778517,0.12502,145.19,145.17,3.4457]
[1728437779024,0.12502,145.19,145.18,3.4455]
[1728437780723,0.12502,145.19,145.16,9.9858]
[1728437781023,0.12502,145.19,145.16,6.54]
[1728437781208,0.12502,145.19,145.17,3.4456]
[1728437784322,0.12502,145.19,145.18,3.4455]
[1728437784525,0.12502,145.19,145.18,19.9855]
[1728437784715,0.12502,145.25,145.18,16.54]
[1728437785018,0.12502,145.25,145.21,16.54]
[1728437785223,0.12502,145.25,145.22,6.54]
[1728437786225,0.12502,145.25,145.24,3.4441]
[1728437789443,0.12502,145.25,145.23,16.54]
[1728437789930,0.12502,145.25,145.24,3.4441]
[1728437790320,0.12502,145.31,145.23,16.54]
[1728437790522,0.12502,145.31,145.22,6.54]
[1728437790725,0.12502,145.31,145.25,16.54]
[1728437791027,0.12502,145.31,145.25,19.9838]
[1728437791028,3.4428,145.3,145.25,19.9838]
[1728437791326,3.64977475,145.31,145.25,19.9838]
[1728437791824,3.64977475,145.31,145.25,16.54]
[1728437792628,3.4433,145.28,145.25,16.54]
[1728437794018,3.64977475,145.31,145.25,16.54]
[1728437794326,3.4436,145.26,145.25,16.54]
[1728437794521,3.4436,145.26,145.23,23.08]
[1728437794932,3.4436,145.26,145.23,16.54]
[1728437795227,3.4434,145.27,145.23,16.54]
[1728437795425,3.64977475,145.31,145.24,3.4441]
[1728437796032,3.64977475,145.31,145.23,16.54]
[1728437796228,3.64977475,145.31,145.23,19.9843]
[1728437797128,3.4436,145.27,145.23,19.9843]
[1728437797330,3.64977475,145.31,145.23,16.54]
[1728437797534,23.08,145.3,145.19,16.66502]
[1728437797835,6.54,145.3,145.21,16.54]
[1728437798938,6.54,145.3,145.19,6.66502]
[1728437798939,6.54,145.3,145.23,16.54]
[1728437799435,3.4438,145.26,145.23,16.54]
[1728437799731,6.54,145.3,145.23,16.54]
[1728437799932,9.9827,145.3,145.26,3.4435]
[1728437800233,3.64977475,145.31,145.25,16.54]
[1728437800435,3.64977475,145.31,145.28,10.59]
[1728437801034,3.4431,145.29,145.27,10.59]
[1728437801332,3.64977475,145.31,145.27,10.59]
[1728437802032,3.4431,145.28,145.27,10.59]
[1728437802335,14.23977475,145.31,145.26,10.59]
[1728437802526,3.4434,145.27,145.24,16.52]
[1728437804335,3.4434,145.27,145.24,19.9641]
[1728437806331,3.64977475,145.31,145.24,16.52]
[1728437806523,3.4432,145.28,145.25,3.4438]
[1728437806921,3.4432,145.28,145.24,19.964]
[1728437808833,3.64977475,145.31,145.24,19.964]
[1728437809137,3.4436,145.26,145.24,16.52]
[1728437809338,20.16977475,145.31,145.22,16.52]
[1728437810126,20.16977475,145.31,145.22,19.9645]
[1728437810323,20.16977475,145.31,145.22,16.52]
[1728437810531,3.4443,145.24,145.22,16.52]
[1728437810736,6.44,145.29,145.22,16.52]
[1728437811238,3.4443,145.23,145.22,16.52]
[1728437811533,3.4443,145.23,145.2,6.44]
[1728437812133,3.4447,145.22,145.2,6.44]
[1728437812440,3.3922836,145.23,145.19,0.12502]
[1728437812639,16.52,145.28,145.19,0.12502]
[1728437812838,6.44,145.29,145.19,0.12502]
[1728437812839,2.7317,145.27,145.19,0.12502]
[1728437813040,16.52,145.26,145.19,0.12502]
[1728437813233,3.445,145.21,145.19,0.12502]
[1728437813943,3.4446,145.22,145.19,0.12502]
[1728437815135,3.4445,145.23,145.2,16.52]
[1728437816137,6.85644201,145.23,145.2,16.52]
[1728437816436,3.4445,145.23,145.2,16.52]
[1728437817444,3.4446,145.22,145.2,16.52]
[1728437817946,3.44569974,145.23,145.2,16.52]
[1728437818144,3.445,145.21,145.19,0.12502]
[1728437819544,3.445,145.2,145.19,0.12502]
[1728437822049,3.4801464,145.23,145.19,0.12502]
[1728437822254,3.4448,145.21,145.19,0.12502]
[1728437822842,3.4447,145.22,145.19,0.12502]
[1728437823848,3.4444,145.23,145.19,3.57032]
[1728437824548,3.4444,145.23,145.2,10.58]
[1728437824845,10.58,145.25,145.2,10.58]
[1728437825150,7.8224,145.26,145.21,10.58]
[1728437825345,2.7317,145.27,145.23,10.58]
[1728437825946,3.4441,145.25,145.23,10.58]
[1728437826350,2.7317,145.27,145.23,10.58]
[1728437826351,13.3117,145.27,145.23,10.58]
[1728437827251,13.3117,145.27,145.23,14.0243]
[1728437827444,13.3117,145.27,145.19,6.56502]
[1728437827445,1.3085,145.27,145.24,10.58]
[1728437827747,3.4435,145.27,145.24,10.58]
[1728437827948,352.02,145.29,145.24,10.58]
[1728437828152,17.02,145.29,145.24,10.58]
[1728437828745,3.4434,145.27,145.24,10.58]
[1728437828952,68.85717735,145.3,145.25,10.58]
[1728437829553,3.4433,145.28,145.25,10.58]
[1728437830364,15.65537475,145.31,145.27,10.58]
[1728437830657,3.4428,145.3,145.28,10.58]
[1728437830957,5.07148454,145.31,145.27,10.58]
[1728437831253,10.58,145.3,145.23,6.44]
[1728437831554,3.4436,145.27,145.24,10.58]
[1728437834150,3.4432,145.28,145.26,10.58]
[1728437834354,5.07148454,145.31,145.27,10.58]
[1728437834555,5.07148454,145.31,145.23,6.44]
[1728437834556,15.65148454,145.31,145.23,6.44]
[1728437834753,3.4434,145.28,145.26,10.58]
[1728437835561,8.51408454,145.31,145.27,14.0232]
[1728437836059,3.4427,145.3,145.27,10.58]
[1728437837554,3.443,145.29,145.25,10.58]
[1728437837754,15.65148454,145.31,145.25,10.58]
[1728437838160,3.4432,145.28,145.25,10.58]
[1728437838352,10.58,145.29,145.21,2.7729]
[1728437838656,10.58,145.28,145.21,6.44]
[1728437838859,10.58,145.28,145.22,10.58]
[1728437839262,3.4441,145.24,145.21,6.44]
[1728437839455,3.4441,145.24,145.22,10.58]
[1728437840061,3.4442,145.24,145.22,10.58]
[1728437840647,3.4442,145.24,145.2,1.4295]
[1728437840648,3.4439,145.25,145.23,10.58]
[1728437841152,16.82,145.28,145.23,10.58]
[1728437841352,10.58,145.27,145.2,1.4295]
[1728437841661,6.24,145.28,145.24,10.58]
[1728437842262,3.4434,145.27,145.24,10.58]
[1728437842461,6.24,145.28,145.24,10.58]
[1728437842663,10.58,145.29,145.24,10.58]
[1728437844161,1.55062,145.31,145.28,10.58]
[1728437844359,3.57172999,145.31,145.29,10.58]
[1728437844855,0.12502,145.31,145.29,10.58]
[1728437845364,3.56762,145.31,145.29,10.58]
[1728437846363,3.56762,145.31,145.27,19.9833]
[1728437846759,0.12502,145.31,145.27,16.54]
[1728437847058,0.12502,145.31,145.29,3.4427]
[1728437847872,0.12502,145.31,145.28,3.443]
[1728437849272,0.12502,145.31,145.27,19.9833]
[1728437849669,3.56742,145.31,145.27,19.9833]
[1728437850771,3.56742,145.31,145.24,3.45084274]
[1728437850772,0.12502,145.31,145.29,16.54]
[1728437851684,0.12502,145.31,145.29,19.9827]
[1728437852063,0.12502,145.31,145.29,16.54]
[1728437853463,0.12502,145.31,145.29,19.9829]
[1728437854179,0.12502,145.31,145.29,16.54]
[1728437854869,0.12502,145.31,145.29,19.9829]
[1728437855375,0.12502,145.31,145.29,16.54]
[1728437855565,3.56762,145.31,145.29,16.54]
[1728437858667,0.12502,145.31,145.29,16.54]
[1728437859270,0.12502,145.31,145.29,19.9828]
[1728437860868,0.12502,145.31,145.29,16.54]
[1728437863279,3.56742,145.31,145.29,16.54]
[1728437866567,0.12502,145.31,145.3,19.9827]
[1728437866775,0.12502,145.31,145.3,16.54]
[1728437868266,0.12502,145.31,145.28,16.54]
[1728437868472,0.12502,145.31,145.3,10.58]
[1728437869481,3.56752,145.31,145.3,10.58]
[1728437869683,0.12502,145.31,145.3,10.58]
[1728437870877,1.12518,145.32,145.3,10.58]
[1728437871083,1.12518,145.32,145.27,6.24]
[1728437871084,1.12518,145.32,145.31,10.58]
[1728437872382,1.12518,145.32,145.3,3.4425]
[1728437872581,1.12518,145.32,145.31,10.58]
[1728437872977,4.56738,145.32,145.31,10.58]
[1728437873582,3.443,145.29,145.26,1.4245]
[1728437873780,1.12518,145.32,145.28,10.58]
[1728437874284,3.443,145.29,145.28,10.58]
[1728437875680,1.12518,145.32,145.28,10.58]
[1728437876778,3.4429,145.3,145.28,10.58]
[1728437877577,1.12518,145.32,145.29,10.58]
[1728437878084,1.12518,145.32,145.3,10.58]
[1728437878783,4.56758,145.32,145.3,10.58]
[1728437879183,1.12518,145.32,145.25,6.10502]
[1728437879379,1.12518,145.32,145.25,0.12502]
[1728437879574,1.12518,145.32,145.28,10.58]
[1728437880178,3.4429,145.29,145.28,10.58]
[1728437881085,3.4429,145.29,145.27,10.58]
[1728437881282,3.4436,145.26,145.25,0.12502]
[1728437881972,3.4446,145.22,145.21,10.58]
[1728437883183,3.4446,145.22,145.19,0.12502]
[1728437883384,3.4449,145.21,145.2,10.58]
[1728437883684,10.58,145.25,145.2,10.58]
[1728437883987,10.58,145.25,145.21,10.58]
[1728437884193,5.98,145.27,145.22,10.58]
[1728437884483,16.56,145.27,145.22,10.58]
[1728437884986,3.4442,145.24,145.22,10.58]
[1728437886882,16.56,145.27,145.22,10.58]
[1728437887189,5.98,145.27,145.23,10.58]
[1728437887889,3.444,145.25,145.23,10.58]
[1728437888887,12.19481558,145.28,145.23,10.58]
[1728437889085,12.19481558,145.28,145.24,10.58]
[1728437890386,3.4436,145.26,145.24,10.58]
[1728437891094,12.19481558,145.28,145.24,10.58]
[1728437891289,10.58,145.27,145.22,10.58]
[1728437891789,3.4443,145.23,145.22,10.58]
[1728437892090,10.58,145.27,145.22,10.58]
[1728437892300,10.58,145.27,145.23,10.58]
[1728437892993,10.58,145.26,145.22,10.58]
[1728437893590,3.4446,145.22,145.2,10.58]
[1728437893896,10.58,145.27,145.21,10.58]
[1728437894496,12.19481558,145.28,145.26,10.58]
[1728437894792,12.19481558,145.28,145.24,10.58]
[1728437895001,4.80871558,145.28,145.24,10.58]
[1728437895186,3.4434,145.27,145.24,10.58]
[1728437898292,3.444,145.25,145.2,3.4449]
[1728437898597,4.80871558,145.28,145.23,10.58]
[1728437898791,10.58,145.27,145.23,10.58]
[1728437898992,3.4441,145.24,145.23,10.58]
[1728437900594,10.58,145.27,145.23,10.58]
[1728437900799,3.4439,145.25,145.23,10.58]
[1728437903404,15.38871558,145.28,145.25,3.4437]
[1728437903405,1.329,145.28,145.25,3.4437]
[1728437903699,1.329,145.28,145.26,10.58]
[1728437903700,3.44853893,145.28,145.26,10.58]
[1728437904001,3.4433,145.28,145.26,10.58]
[1728437904199,3.45473762,145.28,145.24,10.58]
[1728437904401,10.58,145.3,145.24,10.58]
[1728437904601,3.4435,145.27,145.24,10.58]
[1728437907103,3.45645948,145.28,145.21,1.3142]
[1728437907297,3.4438,145.25,145.23,10.58]
[1728437907605,10.58,145.28,145.23,10.58]
[1728437907995,3.41111193,145.28,145.23,10.58]
[1728437908305,3.4437,145.26,145.24,10.58]
[1728437910105,3.42006498,145.28,145.23,10.58]
[1728437910297,3.42006498,145.28,145.21,1.3142]
[1728437910298,3.42006498,145.28,145.21,4.7589]
[1728437910508,3.47688558,145.27,145.22,10.58]
[1728437910904,20.67,145.21,144.95,0.12502]
[1728437911105,10.58,145.09,145.0,1.3692]
[1728437911304,10.58,145.09,145.02,10.58]
[1728437911305,10.58,145.08,145.02,10.58]
[1728437911512,14.0279,145.08,145.02,10.58]
[1728437912499,3.4479,145.08,145.01,1.45752]
[1728437915598,16.55,145.08,145.01,1.45752]
[1728437915911,22.41,145.08,145.01,1.45752]
[1728437916297,3.449,145.04,145.01,1.45752]
[1728437918998,3.4491,145.03,145.01,1.45752]
[1728437921107,22.41,145.08,145.01,1.45752]
[1728437921313,3.4493,145.02,145.01,1.45752]
[1728437928319,3.4493,145.02,145.01,0.12502]
[1728437929229,19.9993,145.02,145.01,0.12502]
[1728437932112,19.98654499,145.02,144.95,0.12502]
[1728437932317,3.4507,144.96,144.95,0.12502]
[1728437932625,6.94244096,144.96,144.95,0.12502]
[1728437938530,17.55244096,144.96,144.95,0.12502]
[1728437939536,5.86,145.0,144.95,0.12502]
[1728437939835,10.61,144.97,144.95,0.12502]
[1728437940635,3.4507,144.96,144.95,0.12502]
[1728437940833,14.0607,144.96,144.95,0.12502]
[1728437943735,19.9207,144.96,144.95,0.12502]
[1728437944546,3.4518,144.92,144.9,1.3928]
[1728437944742,10.61,144.91,144.89,0.12502]
[1728437944939,10.61,144.92,144.89,0.12502]
[1728437945143,14.0619,144.92,144.89,0.12502]
[1728437945445,3.4519,144.92,144.89,0.12502]
[1728437947248,20.67,144.85,144.75,10.61]
[1728437947460,10.61,144.82,144.72,3.45307149]
[1728437947753,3.455,144.79,144.73,1.3201]
[1728437947948,3.455,144.79,144.75,10.61]
[1728437948151,3.41026625,144.85,144.75,10.61]
[1728437948345,3.4548,144.79,144.75,10.61]
[1728437948649,5.86,144.78,144.73,1.3201]
[1728437948950,5.86,144.77,144.73,1.3201]
[1728437949252,17.9182,144.83,144.73,1.3201]
[1728437949253,5.86,144.78,144.73,1.3201]
[1728437949452,5.86,144.77,144.73,1.3201]
[1728437950144,3.455,144.79,144.73,1.3201]
[1728437950349,0.12502,144.83,144.74,16.59]
[1728437950545,5.86,144.82,144.74,16.59]
[1728437950863,0.12502,144.83,144.77,3.4551]
[1728437950864,3.57892,144.83,144.77,3.4551]
[1728437951151,0.12502,144.83,144.76,16.59]
[1728437951455,9.3143,144.82,144.77,1.2992]
[1728437951751,5.86,144.82,144.77,1.2992]
[1728437952054,5.88,144.81,144.77,1.2992]
[1728437952257,9.3345,144.81,144.77,1.2992]
[1728437953141,0.12502,144.83,144.77,1.2992]
[1728437953448,9.3341,144.82,144.77,4.7544]
[1728437953654,5.88,144.81,144.77,4.7544]
[1728437954154,3.4541,144.82,144.77,4.7544]
[1728437954362,5.88,144.82,144.77,1.2992]
[1728437954952,9.3341,144.82,144.77,4.7542]
[1728437955154,0.12502,144.83,144.77,1.2992]
[1728437955357,6.00502,144.83,144.78,1.427]
[1728437955764,0.12502,144.83,144.79,3.4546]
[1728437956054,0.12502,144.83,144.78,1.427]
[1728437956250,0.12502,144.83,144.8,3.4543]
[1728437957149,0.12502,144.83,144.78,1.427]
[1728437957355,0.12502,144.83,144.78,21.42626152]
[1728437958853,0.12502,144.83,144.81,3.4541]
[1728437959251,0.12502,144.83,144.82,3.4541]
[1728437960258,9.5127,144.88,144.84,3.4534]
[1728437960657,0.12502,144.89,144.84,16.59]
[1728437960862,0.12502,144.89,144.85,4.8446]
[1728437961260,0.12502,144.89,144.86,3.4529]
[1728437962959,0.12502,144.89,144.87,3.4528]
[1728437963162,0.12502,144.89,144.85,1.3914]
[1728437963366,0.12502,144.89,144.85,2.714]
[1728437963761,0.12502,144.89,144.87,3.4527]
[1728437964665,0.12502,144.89,144.88,3.4526]
[1728437967579,0.12502,144.89,144.87,3.4528]
[1728437967872,0.12502,144.89,144.85,2.714]
[1728437969387,0.12502,144.89,144.88,3.4526]
[1728437969966,0.12502,144.89,144.85,2.714]
[1728437970175,3.4527,144.88,144.85,4.8447]
[1728437970491,0.12502,144.89,144.81,7.4901]
[1728437970773,3.57752,144.89,144.85,3.4532]
[1728437971270,3.4529,144.87,144.83,3.4537]
[1728437971662,3.4529,144.87,144.82,1.4353]
[1728437971976,3.4529,144.87,144.83,3.4538]
[1728437972168,3.4531,144.86,144.83,3.4538]
[1728437972566,6.06,144.88,144.83,3.4538]
[1728437972762,3.4529,144.87,144.83,3.4538]
[1728437973171,6.06,144.88,144.83,3.4538]
[1728437973372,3.4531,144.86,144.83,3.4538]
[1728437973573,6.06,144.88,144.83,3.4538]
[1728437973771,6.06,144.88,144.84,3.4536]
[1728437974670,6.06,144.88,144.79,17.8896]
[1728437975272,3.4533,144.86,144.83,3.4538]
[1728437975571,0.12502,144.89,144.79,17.8896]
[1728437975772,0.12502,144.89,144.88,3.4526]
[1728437975972,0.12502,144.89,144.83,16.59]
[1728437976369,0.12502,144.89,144.87,3.4528]
[1728437976770,0.12502,144.89,144.83,16.59]
[1728437977981,0.12502,144.89,144.87,3.4531]